fUST/lending_fUST_20250709
["ID","MTS","AMOUNT","RATE_DAILY","PERIOD"]
[370475840,1752036632516,-760.07289997,0.00019006,2]
[370475842,1752036632525,-302.69733596,0.00019044,2]
[370475843,1752036632536,-233.80356489,0.00019077,2]
[370475844,1752036632546,-598.97800169,0.00019105,2]
[370475845,1752036632556,-300.0,0.00019176,2]
[370475846,1752036632565,-277.89350851,0.00019177,2]
[370475847,1752036632575,-415.41428327,0.00019177,2]
[370475848,1752036632584,-469.92583304,0.00019177,2]
[370475849,1752036632594,-352.5536802,0.00019177,2]
[370475851,1752036632605,-242.69181092,0.00019177,2]
[370475854,1752036632616,-500.0,0.00019177,2]
[370475855,1752036632626,-500.0,0.00019177,2]
[370475856,1752036632635,-500.0,0.00019177,2]
[370475857,1752036632644,-500.0,0.00019177,2]
[370475858,1752036632655,-500.0,0.00019177,2]
[370475859,1752036632664,-500.0,0.00019177,2]
[370475860,1752036632674,-500.0,0.00019177,2]
[370475861,1752036632686,-500.0,0.00019177,2]
[370475862,1752036632695,-500.0,0.00019177,2]
[370475863,1752036632705,-500.0,0.00019177,2]
[370475864,1752036632715,-500.0,0.00019177,2]
[370475865,1752036632726,-500.0,0.00019177,2]
[370475866,1752036632736,-611.02019291,0.00019177,2]
[370475867,1752036632746,-500.0,0.00019177,2]
[370475868,1752036632755,-500.0,0.00019177,2]
[370475869,1752036632765,-500.0,0.00019177,2]
[370475870,1752036632776,-500.0,0.00019177,2]
[370475871,1752036632785,-500.0,0.00019177,2]
[370475872,1752036632795,-500.0,0.00019177,2]
[370475873,1752036632805,-500.0,0.00019177,2]
[370475874,1752036632816,-500.0,0.00019177,2]
[370475875,1752036632826,-500.0,0.00019177,2]
[370475876,1752036632836,-500.0,0.00019177,2]
[370475877,1752036632847,-500.0,0.00019177,2]
[370475878,1752036632857,-500.0,0.00019177,2]
[370475879,1752036632866,-500.0,0.00019177,2]
[370475880,1752036632877,-500.0,0.00019177,2]
[370475881,1752036632887,-250.0,0.00019177,2]
[370475882,1752036632898,-600.0,0.00019177,2]
[370475883,1752036632908,-460.0,0.00019178,2]
[370475884,1752036632918,-460.0,0.00019178,2]
[370475885,1752036632927,-460.0,0.00019178,2]
[370475886,1752036632937,-234.73364884,0.00019178,2]
[370475887,1752036632948,-460.0,0.00019178,2]
[370475888,1752036632958,-209.69945267,0.00019178,2]
[370475889,1752036632967,-460.0,0.00019178,2]
[370475890,1752036632978,-460.0,0.00019178,2]
[370475891,1752036632988,-460.0,0.00019178,2]
[370475892,1752036632999,-460.0,0.00019178,2]
[370475893,1752036633009,-481.24664277,0.00019178,2]
[370475894,1752036633018,-460.0,0.00019178,2]
[370475895,1752036633028,-460.0,0.00019178,2]
[370475896,1752036633038,-407.51219643,0.00019178,2]
[370475897,1752036633047,-460.0,0.00019178,2]
[370475898,1752036633057,-584.31,0.00019178,2]
[370475899,1752036633066,-417.35877617,0.00019178,2]
[370475900,1752036633075,-460.0,0.00019178,2]
[370475901,1752036633085,-460.0,0.00019178,2]
[370475902,1752036633095,-460.0,0.00019178,2]
[370475903,1752036633104,-540.02170169,0.00019178,2]
[370475904,1752036633114,-461.50118401,0.00019178,2]
[370475905,1752036633123,-205.39066543,0.00019178,2]
[370475906,1752036633145,-227.01162962,0.00019178,2]
[370475907,1752036633157,-460.0,0.00019178,2]
[370475908,1752036633168,-460.0,0.00019178,2]
[370475909,1752036633178,-460.0,0.00019178,2]
[370475910,1752036633188,-460.0,0.00019178,2]
[370475911,1752036633198,-460.0,0.00019178,2]
[370475912,1752036633208,-460.0,0.00019178,2]
[370475913,1752036633218,-170.87422077,0.00019178,2]
[370475914,1752036633228,-460.0,0.00019178,2]
[370475915,1752036633238,-460.0,0.00019178,2]
[370475916,1752036633248,-460.0,0.00019178,2]
[370475917,1752036633258,-460.0,0.00019178,2]
[370475918,1752036633269,-460.0,0.00019178,2]
[370475919,1752036633279,-462.71446053,0.00019178,2]
[370475920,1752036633289,-543.28,0.00019178,2]
[370475921,1752036633299,-460.0,0.00019178,2]
[370475922,1752036633309,-593.43,0.00019178,2]
[370475923,1752036633320,-460.0,0.00019178,2]
[370475924,1752036633330,-462.59002881,0.00019178,2]
[370475925,1752036633339,-461.37396523,0.00019178,2]
[370475926,1752036633351,-460.0,0.00019178,2]
[370475927,1752036633361,-460.0,0.00019178,2]
[370475928,1752036633371,-460.0,0.00019178,2]
[370475929,1752036633381,-468.16342656,0.00019178,2]
[370475930,1752036633391,-460.0,0.00019178,2]
[370475931,1752036633401,-460.93439165,0.00019178,2]
[370475932,1752036633411,-460.0,0.00019178,2]
[370475933,1752036633421,-461.90103217,0.00019178,2]
[370475934,1752036633431,-463.85209503,0.00019178,2]
[370475935,1752036633441,-463.82029014,0.00019178,2]
[370475936,1752036633451,-460.0,0.00019178,2]
[370475937,1752036633461,-466.29818054,0.00019178,2]
[370475938,1752036633472,-237.17240886,0.00019178,2]
[370475939,1752036633483,-460.0,0.00019178,2]
[370475940,1752036633494,-460.0,0.00019178,2]
[370475941,1752036633504,-543.44656983,0.00019178,2]
[370475942,1752036633514,-460.0,0.00019178,2]
[370475943,1752036633524,-338.80661312,0.00019178,2]
[370475944,1752036633534,-460.0,0.00019178,2]
[370475945,1752036633544,-460.0,0.00019178,2]
[370475946,1752036633554,-460.0,0.00019178,2]
[370475947,1752036633564,-460.0,0.00019178,2]
[370475948,1752036633574,-462.16292768,0.00019178,2]
[370475949,1752036633583,-460.0,0.00019178,2]
[370475950,1752036633593,-462.27660395,0.00019178,2]
[370475951,1752036633605,-466.63479276,0.00019178,2]
[370475952,1752036633618,-408.57092514,0.00019178,2]
[370475953,1752036633628,-528.82663815,0.00019178,2]
[370475954,1752036633639,-460.0,0.00019178,2]
[370475955,1752036633651,-460.0,0.00019178,2]
[370475956,1752036633661,-147.41802419,0.00019178,2]
[370475957,1752036633677,-261.73639208,0.00019178,2]
[370475958,1752036633688,-463.56360964,0.00019178,2]
[370475959,1752036633700,-460.0,0.00019178,2]
[370475960,1752036633710,-137.41357028,0.00019178,2]
[370475967,1752036638170,-322.58642972,0.00019178,2]
[370475969,1752036638182,-472.57671558,0.00019178,2]
[370475972,1752036638196,-460.0,0.00019178,2]
[370475974,1752036638207,-113.44539218,0.00019178,2]
[370475976,1752036638224,-346.55460782,0.00019178,2]
[370475979,1752036638236,-460.0,0.00019178,2]
[370475981,1752036638247,-460.0,0.00019178,2]
[370475983,1752036638259,-460.0,0.00019178,2]
[370475985,1752036638270,-460.56335982,0.00019178,2]
[370475987,1752036638282,-460.0,0.00019178,2]
[370475991,1752036638293,-460.0,0.00019178,2]
[370475993,1752036638304,-460.0,0.00019178,2]
[370475995,1752036638315,-460.0,0.00019178,2]
[370475998,1752036638332,-460.0,0.00019178,2]
[370476000,1752036638343,-460.0,0.00019178,2]
[370476002,1752036638354,-460.0,0.00019178,2]
[370476004,1752036638365,-460.0,0.00019178,2]
[370476007,1752036638377,-460.0,0.00019178,2]
[370476009,1752036638387,-460.0,0.00019178,2]
[370476011,1752036638399,-460.0,0.00019178,2]
[370476013,1752036638410,-460.0,0.00019178,2]
[370476015,1752036638422,-469.57868457,0.00019178,2]
[370476018,1752036638434,-460.0,0.00019178,2]
[370476020,1752036638446,-460.0,0.00019178,2]
[370476022,1752036638457,-2522.95,0.00019178,2]
[370476024,1752036638468,-471.47209868,0.00019178,2]
[370476026,1752036638480,-460.0,0.00019178,2]
[370476029,1752036638492,-460.0,0.00019178,2]
[370476031,1752036638504,-1860.36,0.00019178,2]
[370476033,1752036638516,-467.73022398,0.00019178,2]
[370476035,1752036638528,-177.87050087,0.00019178,2]
[370476038,1752036638549,-282.12949913,0.00019178,2]
[370476041,1752036638560,-460.0,0.00019178,2]
[370476043,1752036638571,-460.0,0.00019178,2]
[370476045,1752036638583,-559.15231256,0.00019178,2]
[370476047,1752036638595,-460.0,0.00019178,2]
[370476049,1752036638608,-460.0,0.00019178,2]
[370476052,1752036638622,-496.28463018,0.00019178,2]
[370476054,1752036638633,-465.33,0.00019178,2]
[370476056,1752036638644,-1242.6,0.00019178,2]
[370476058,1752036638655,-460.0,0.00019178,2]
[370476060,1752036638667,-870.17,0.00019178,2]
[370476062,1752036638678,-460.0,0.00019178,2]
[370476065,1752036638690,-463.87445045,0.00019178,2]
[370476067,1752036638702,-460.0,0.00019178,2]
[370476069,1752036638714,-607.64,0.00019178,2]
[370476071,1752036638726,-460.0,0.00019178,2]
[370476074,1752036638741,-460.0,0.00019178,2]
[370476076,1752036638753,-460.0,0.00019178,2]
[370476078,1752036638766,-460.0,0.00019178,2]
[370476081,1752036638778,-460.0,0.00019178,2]
[370476083,1752036638789,-460.0,0.00019178,2]
[370476085,1752036638801,-460.0,0.00019178,2]
[370476087,1752036638812,-462.39436905,0.00019178,2]
[370476089,1752036638824,-460.0,0.00019178,2]
[370476092,1752036638836,-460.0,0.00019178,2]
[370476094,1752036638847,-683.01,0.00019178,2]
[370476096,1752036638861,-460.0,0.00019178,2]
[370476098,1752036638873,-460.0,0.00019178,2]
[370476101,1752036638885,-460.0,0.00019178,2]
[370476103,1752036638897,-460.0,0.00019178,2]
[370476105,1752036638908,-460.0,0.00019178,2]
[370476107,1752036638919,-1166.18,0.00019178,2]
[370476109,1752036638931,-460.0,0.00019178,2]
[370476112,1752036638944,-460.0,0.00019178,2]
[370476114,1752036638955,-460.0,0.00019178,2]
[370476116,1752036638967,-460.0,0.00019178,2]
[370476118,1752036638980,-460.0,0.00019178,2]
[370476121,1752036638992,-460.0,0.00019178,2]
[370476123,1752036639003,-460.0,0.00019178,2]
[370476125,1752036639013,-460.0,0.00019178,2]
[370476127,1752036639025,-1646.39,0.00019178,2]
[370476129,1752036639035,-462.92015613,0.00019178,2]
[370476131,1752036639046,-460.0,0.00019178,2]
[370476133,1752036639055,-460.0,0.00019178,2]
[370476135,1752036639065,-460.0,0.00019178,2]
[370476137,1752036639075,-460.0,0.00019178,2]
[370476139,1752036639085,-460.0,0.00019178,2]
[370476160,1752036639276,-460.0,0.00019178,2]
[370476163,1752036639295,-460.0,0.00019178,2]
[370476165,1752036639305,-1083.52,0.00019178,2]
[370476167,1752036639315,-460.0,0.00019178,2]
[370476169,1752036639324,-462.57240756,0.00019178,2]
[370476171,1752036639335,-460.0,0.00019178,2]
[370476173,1752036639344,-460.0,0.00019178,2]
[370476175,1752036639353,-460.0,0.00019178,2]
[370476177,1752036639364,-460.0,0.00019178,2]
[370476179,1752036639373,-463.97317196,0.00019178,2]
[370476181,1752036639384,-460.0,0.00019178,2]
[370476183,1752036639394,-461.60919614,0.00019178,2]
[370476185,1752036639403,-460.0,0.00019178,2]
[370476187,1752036639413,-460.0,0.00019178,2]
[370476189,1752036639423,-460.0,0.00019178,2]
[370476191,1752036639433,-460.0,0.00019178,2]
[370476193,1752036639443,-460.0,0.00019178,2]
[370476195,1752036639453,-722.52,0.00019178,2]
[370476197,1752036639463,-500.0,0.00019178,2]
[370476200,1752036639474,-460.0,0.00019178,2]
[370476201,1752036639484,-500.0,0.00019178,2]
[370476203,1752036639493,-500.0,0.00019178,2]
[370476205,1752036639504,-500.0,0.00019178,2]
[370476207,1752036639514,-460.0,0.00019178,2]
[370476209,1752036639524,-500.0,0.00019178,2]
[370476212,1752036639534,-1253.21,0.00019178,2]
[370476214,1752036639543,-460.0,0.00019178,2]
[370476216,1752036639553,-460.0,0.00019178,2]
[370476218,1752036639563,-460.0,0.00019178,2]
[370476220,1752036639572,-460.0,0.00019178,2]
[370476222,1752036639582,-460.0,0.00019178,2]
[370476224,1752036639591,-460.0,0.00019178,2]
[370476226,1752036639601,-460.0,0.00019178,2]
[370476228,1752036639616,-460.0,0.00019178,2]
[370476230,1752036639625,-695.87,0.00019178,2]
[370476232,1752036639634,-460.0,0.00019178,2]
[370476233,1752036639644,-460.0,0.00019178,2]
[370476234,1752036639655,-460.0,0.00019178,2]
[370476235,1752036639664,-460.0,0.00019178,2]
[370476236,1752036639674,-460.0,0.00019178,2]
[370476237,1752036639684,-460.0,0.00019178,2]
[370476238,1752036639694,-460.0,0.00019178,2]
[370476239,1752036639705,-460.0,0.00019178,2]
[370476240,1752036639714,-460.0,0.00019178,2]
[370476241,1752036639724,-460.0,0.00019178,2]
[370476242,1752036639733,-150.28,0.00019178,2]
[370476243,1752036639743,-460.0,0.00019178,2]
[370476244,1752036639753,-956.66,0.00019178,2]
[370476245,1752036639762,-461.99695917,0.00019178,2]
[370476246,1752036639772,-460.0,0.00019178,2]
[370476247,1752036639782,-460.0,0.00019178,2]
[370476248,1752036639792,-460.0,0.00019178,2]
[370476249,1752036639802,-460.0,0.00019178,2]
[370476250,1752036639812,-461.78505742,0.00019178,2]
[370476251,1752036639821,-460.0,0.00019178,2]
[370476252,1752036639831,-656.55,0.00019178,2]
[370476253,1752036639841,-460.0,0.00019178,2]
[370476255,1752036639852,-460.0,0.00019178,2]
[370476257,1752036639862,-1984.95,0.00019178,2]
[370476259,1752036639872,-460.0,0.00019178,2]
[370476260,1752036639881,-460.0,0.00019178,2]
[370476261,1752036639891,-460.0,0.00019178,2]
[370476262,1752036639901,-460.0,0.00019178,2]
[370476263,1752036639910,-369.48782559,0.00019178,2]
[370476264,1752036639919,-460.0,0.00019178,2]
[370476265,1752036639929,-460.0,0.00019178,2]
[370476267,1752036639939,-465.87882745,0.00019178,2]
[370476269,1752036639948,-460.0,0.00019178,2]
[370476271,1752036639958,-460.0,0.00019178,2]
[370476273,1752036639968,-460.0,0.00019178,2]
[370476276,1752036639978,-460.0,0.00019178,2]
[370476278,1752036639987,-460.0,0.00019178,2]
[370476281,1752036639998,-460.0,0.00019178,2]
[370476283,1752036640008,-460.0,0.00019178,2]
[370476285,1752036640018,-694.39,0.00019178,2]
[370476287,1752036640028,-460.0,0.00019178,2]
[370476289,1752036640037,-460.0,0.00019178,2]
[370476291,1752036640047,-460.0,0.00019178,2]
[370476293,1752036640057,-460.0,0.00019178,2]
[370476295,1752036640066,-460.0,0.00019178,2]
[370476297,1752036640076,-540.02,0.00019178,2]
[370476299,1752036640086,-460.0,0.00019178,2]
[370476301,1752036640096,-460.0,0.00019178,2]
[370476303,1752036640105,-460.0,0.00019178,2]
[370476305,1752036640115,-460.0,0.00019178,2]
[370476307,1752036640124,-460.0,0.00019178,2]
[370476309,1752036640134,-715.48,0.00019178,2]
[370476311,1752036640143,-460.0,0.00019178,2]
[370476313,1752036640153,-460.0,0.00019178,2]
[370476315,1752036640163,-462.87599451,0.00019178,2]
[370476317,1752036640172,-520.33,0.00019178,2]
[370476319,1752036640182,-460.0,0.00019178,2]
[370476321,1752036640192,-460.0,0.00019178,2]
[370476323,1752036640201,-588.98,0.00019178,2]
[370476325,1752036640211,-204.404331,0.00019178,2]
[370476327,1752036640221,-500.0,0.00019178,2]
[370476329,1752036640231,-302.51597147,0.0001919,2]
[370476331,1752036640241,-151.0,0.000192,2]
[370476333,1752036640251,-302.69733596,0.00019234,2]
[370476335,1752036640261,-1322.89923608,0.00019252,2]
[370476337,1752036640271,-183.1484428,0.000193,2]
[370476339,1752036640281,-392.14,0.00019319,3]
[370476341,1752036640290,-196.07,0.00019319,3]
[370476343,1752036640299,-588.21,0.00019319,3]
[370476345,1752036640308,-100000.0,0.00019329,2]
[370476347,1752036640318,-760.07289997,0.00019389,2]
[370476349,1752036640327,-302.69733596,0.00019425,2]
[370476351,1752036640336,-500.0,0.00019451,2]
[370476353,1752036640345,-500.0,0.00019451,2]
[370476355,1752036640354,-460.0,0.00019452,2]
[370476357,1752036640364,-505.13,0.00019452,2]
[370476359,1752036640374,-575.04756073,0.00019452,2]
[370476361,1752036640383,-238.82,0.00019452,2]
[370476363,1752036640393,-244.1856744,0.00019452,2]
[370476364,1752036640402,-348.24,0.00019452,2]
[370476367,1752036640411,-460.0,0.00019452,2]
[370476368,1752036640421,-460.0,0.00019452,2]
[370476370,1752036640430,-554.79466765,0.00019452,2]
[370476372,1752036640440,-460.0,0.00019452,2]
[370476374,1752036640449,-460.0,0.00019452,2]
[370476376,1752036640458,-460.0,0.00019452,2]
[370476378,1752036640467,-469.89836284,0.00019452,2]
[370476380,1752036640476,-460.0,0.00019452,2]
[370476382,1752036640487,-460.0,0.00019452,2]
[370476384,1752036640496,-460.0,0.00019452,2]
[370476386,1752036640506,-460.0,0.00019452,2]
[370476388,1752036640515,-162.39,0.00019452,2]
[370476390,1752036640525,-470.80325457,0.00019452,2]
[370476392,1752036640534,-460.0,0.00019452,2]
[370476394,1752036640544,-460.0,0.00019452,2]
[370476396,1752036640553,-460.0,0.00019452,2]
[370476398,1752036640562,-460.0,0.00019452,2]
[370476401,1752036640572,-460.0,0.00019452,2]
[370476403,1752036640581,-460.0,0.00019452,2]
[370476405,1752036640591,-460.0,0.00019452,2]
[370476407,1752036640600,-460.0,0.00019452,2]
[370476409,1752036640612,-470.02337387,0.00019452,2]
[370476411,1752036640622,-460.0,0.00019452,2]
[370476413,1752036640631,-460.0,0.00019452,2]
[370476414,1752036640641,-460.0,0.00019452,2]
[370476417,1752036640651,-460.0,0.00019452,2]
[370476419,1752036640662,-460.0,0.00019452,2]
[370476420,1752036640671,-460.0,0.00019452,2]
[370476423,1752036640682,-460.0,0.00019452,2]
[370476425,1752036640692,-472.26780812,0.00019452,2]
[370476427,1752036640702,-188.29,0.00019452,2]
[370476430,1752036640712,-460.0,0.00019452,2]
[370476433,1752036640722,-460.0,0.00019452,2]
[370476435,1752036640732,-460.0,0.00019452,2]
[370476438,1752036640743,-460.0,0.00019452,2]
[370476440,1752036640754,-460.0,0.00019452,2]
[370476442,1752036640764,-460.0,0.00019452,2]
[370476444,1752036640775,-466.63576569,0.00019452,2]
[370476447,1752036640785,-460.0,0.00019452,2]
[370476450,1752036640795,-460.0,0.00019452,2]
[370476452,1752036640806,-460.0,0.00019452,2]
[370476454,1752036640816,-2522.95,0.00019452,2]
[370476456,1752036640829,-460.0,0.00019452,2]
[370476459,1752036640839,-1860.36,0.00019452,2]
[370476462,1752036640849,-460.0,0.00019452,2]
[370476465,1752036640860,-460.0,0.00019452,2]
[370476468,1752036640871,-460.0,0.00019452,2]
[370476471,1752036640883,-460.0,0.00019452,2]
[370476474,1752036640896,-465.33,0.00019452,2]
[370476477,1752036640907,-1242.6,0.00019452,2]
[370476480,1752036640917,-460.0,0.00019452,2]
[370476483,1752036640927,-870.17,0.00019452,2]
[370476486,1752036640938,-460.0,0.00019452,2]
[370476489,1752036640947,-607.64,0.00019452,2]
[370476492,1752036640957,-460.0,0.00019452,2]
[370476495,1752036640967,-460.0,0.00019452,2]
[370476498,1752036640977,-460.0,0.00019452,2]
[370476501,1752036640987,-460.0,0.00019452,2]
[370476504,1752036640997,-460.0,0.00019452,2]
[370476507,1752036641007,-462.42166744,0.00019452,2]
[370476512,1752036641017,-460.0,0.00019452,2]
[370476515,1752036641027,-460.0,0.00019452,2]
[370476517,1752036641037,-683.01,0.00019452,2]
[370476521,1752036641047,-364.15080532,0.00019452,2]
[370476524,1752036641057,-460.0,0.00019452,2]
[370476527,1752036641067,-245.33393681,0.00019452,2]
[370476530,1752036641076,-460.0,0.00019452,2]
[370476533,1752036641086,-460.0,0.00019452,2]
[370476536,1752036641096,-1166.18,0.00019452,2]
[370476539,1752036641105,-460.0,0.00019452,2]
[370476542,1752036641115,-460.0,0.00019452,2]
[370476544,1752036641125,-460.0,0.00019452,2]
[370476546,1752036641138,-460.0,0.00019452,2]
[370476548,1752036641147,-466.96522979,0.00019452,2]
[370476550,1752036641157,-460.0,0.00019452,2]
[370476552,1752036641166,-460.0,0.00019452,2]
[370476554,1752036641177,-1646.39,0.00019452,2]
[370476556,1752036641195,-460.0,0.00019452,2]
[370476558,1752036641205,-460.0,0.00019452,2]
[370476560,1752036641215,-460.0,0.00019452,2]
[370476562,1752036641225,-460.0,0.00019452,2]
[370476564,1752036641234,-460.0,0.00019452,2]
[370476566,1752036641244,-460.0,0.00019452,2]
[370476568,1752036641254,-1083.52,0.00019452,2]
[370476570,1752036641263,-327.71838445,0.00019452,2]
[370476572,1752036641273,-460.0,0.00019452,2]
[370476574,1752036641283,-460.0,0.00019452,2]
[370476576,1752036641293,-460.0,0.00019452,2]
[370476578,1752036641303,-460.0,0.00019452,2]
[370476580,1752036641313,-532.69809761,0.00019452,2]
[370476582,1752036641323,-460.0,0.00019452,2]
[370476584,1752036641332,-460.0,0.00019452,2]
[370476586,1752036641341,-460.0,0.00019452,2]
[370476588,1752036641351,-722.52,0.00019452,2]
[370476590,1752036641360,-460.0,0.00019452,2]
[370476592,1752036641369,-460.0,0.00019452,2]
[370476594,1752036641379,-1253.21,0.00019452,2]
[370476596,1752036641388,-460.0,0.00019452,2]
[370476598,1752036641398,-460.0,0.00019452,2]
[370476600,1752036641407,-460.0,0.00019452,2]
[370476602,1752036641416,-470.24643165,0.00019452,2]
[370476604,1752036641425,-460.0,0.00019452,2]
[370476606,1752036641435,-328.27,0.00019452,2]
[370476608,1752036641444,-460.0,0.00019452,2]
[370476610,1752036641454,-695.87,0.00019452,2]
[370476612,1752036641463,-460.0,0.00019452,2]
[370476614,1752036641473,-460.0,0.00019452,2]
[370476616,1752036641482,-460.0,0.00019452,2]
[370476618,1752036641492,-465.10927877,0.00019452,2]
[370476620,1752036641502,-460.0,0.00019452,2]
[370476622,1752036641511,-460.0,0.00019452,2]
[370476624,1752036641521,-460.0,0.00019452,2]
[370476626,1752036641531,-460.0,0.00019452,2]
[370476628,1752036641540,-460.0,0.00019452,2]
[370476630,1752036641549,-460.0,0.00019452,2]
[370476632,1752036641559,-460.0,0.00019452,2]
[370476634,1752036641568,-956.66,0.00019452,2]
[370476636,1752036641578,-460.0,0.00019452,2]
[370476638,1752036641588,-460.0,0.00019452,2]
[370476640,1752036641597,-656.55,0.00019452,2]
[370476641,1752036641607,-1984.95,0.00019452,2]
[370476643,1752036641619,-594.39730287,0.00019452,2]
[370476645,1752036641629,-460.0,0.00019452,2]
[370476647,1752036641640,-460.0,0.00019452,2]
[370476649,1752036641650,-460.0,0.00019452,2]
[370476651,1752036641660,-460.0,0.00019452,2]
[370476653,1752036641669,-460.0,0.00019452,2]
[370476655,1752036641679,-460.0,0.00019452,2]
[370476657,1752036641690,-460.0,0.00019452,2]
[370476659,1752036641702,-460.0,0.00019452,2]
[370476661,1752036641711,-460.0,0.00019452,2]
[370476663,1752036641720,-460.0,0.00019452,2]
[370476665,1752036641729,-460.0,0.00019452,2]
[370476667,1752036641740,-694.39,0.00019452,2]
[370476669,1752036641749,-460.0,0.00019452,2]
[370476670,1752036641758,-460.0,0.00019452,2]
[370476672,1752036641767,-460.0,0.00019452,2]
[370476674,1752036641778,-460.0,0.00019452,2]
[370476676,1752036641788,-540.02,0.00019452,2]
[370476678,1752036641797,-460.0,0.00019452,2]
[370476680,1752036641807,-460.0,0.00019452,2]
[370476682,1752036641816,-460.0,0.00019452,2]
[370476684,1752036641826,-450.0,0.00019452,2]
[370476686,1752036641836,-460.0,0.00019452,2]
[370476688,1752036641845,-715.48,0.00019452,2]
[370476690,1752036641855,-460.0,0.00019452,2]
[370476692,1752036641865,-460.0,0.00019452,2]
[370476694,1752036641874,-460.0,0.00019452,2]
[370476696,1752036641884,-588.98,0.00019452,2]
[370476698,1752036641894,-500.0,0.00019452,2]
[370476700,1752036641904,-760.07289997,0.00019485,2]
[370476702,1752036641913,-151.0,0.000195,2]
[370476704,1752036641923,-427.84938095,0.00019615,2]
[370476706,1752036641936,-500.0,0.00019725,2]
[370476708,1752036641945,-512.99126373,0.00019725,2]
[370476710,1752036641955,-460.0,0.00019726,2]
[370476712,1752036641963,-460.0,0.00019726,2]
[370476713,1752036641973,-460.0,0.00019726,2]
[370476714,1752036641983,-460.0,0.00019726,2]
[370476715,1752036641993,-460.0,0.00019726,2]
[370476716,1752036642002,-471.40516269,0.00019726,2]
[370476717,1752036642012,-408.40729688,0.00019726,2]
[370476718,1752036642022,-460.0,0.00019726,2]
[370476719,1752036642032,-460.0,0.00019726,2]
[370476720,1752036642041,-460.0,0.00019726,2]
[370476721,1752036642051,-460.0,0.00019726,2]
[370476722,1752036642061,-460.0,0.00019726,2]
[370476723,1752036642071,-460.0,0.00019726,2]
[370476724,1752036642080,-460.0,0.00019726,2]
[370476725,1752036642090,-460.0,0.00019726,2]
[370476726,1752036642099,-460.0,0.00019726,2]
[370476727,1752036642108,-460.0,0.00019726,2]
[370476728,1752036642118,-470.69813594,0.00019726,2]
[370476729,1752036642127,-460.0,0.00019726,2]
[370476730,1752036642137,-534.25288199,0.00019726,2]
[370476731,1752036642147,-460.0,0.00019726,2]
[370476732,1752036642365,-435.33479534,0.00019726,2]
[370476733,1752036642374,-475.25506201,0.00019726,2]
[370476734,1752036642383,-460.0,0.00019726,2]
[370476735,1752036642393,-460.0,0.00019726,2]
[370476736,1752036642403,-460.0,0.00019726,2]
[370476737,1752036642413,-460.0,0.00019726,2]
[370476738,1752036642424,-460.0,0.00019726,2]
[370476739,1752036642433,-460.0,0.00019726,2]
[370476740,1752036642442,-462.61092801,0.00019726,2]
[370476741,1752036642452,-2522.95,0.00019726,2]
[370476742,1752036642462,-460.0,0.00019726,2]
[370476743,1752036642474,-1860.36,0.00019726,2]
[370476744,1752036642483,-460.0,0.00019726,2]
[370476745,1752036642493,-460.0,0.00019726,2]